bitfinex/quotes_ETHUSD_20251009
["timestamp","ask_amount","ask_price","bid_price","bid_amount"]
[1760040597346,2.88726792,4342.6,4342.5,0.001]
[1760040600372,2.89176792,4342.6,4342.5,0.001]
[1760040608584,0.589,4342.6,4342.5,0.001]
[1760040608759,2.41716792,4342.6,4342.5,0.001]
[1760040609174,2.89176792,4342.6,4342.5,0.001]
[1760040610585,0.1144,4342.6,4342.5,0.001]
[1760040610786,2.89176792,4342.6,4342.5,0.001]
[1760040611689,3.41211139,4342.6,4342.5,0.001]
[1760040611857,4.04571139,4342.6,4342.5,0.001]
[1760040612064,4.54209184,4342.6,4342.5,0.001]
[1760040615476,11.04809184,4342.6,4342.5,0.001]
[1760040615682,4.54209184,4342.6,4342.5,0.001]
[1760040615879,11.04809184,4342.6,4342.5,0.001]
[1760040618866,11.66651652,4342.6,4342.5,0.001]
[1760040619087,11.04809184,4342.6,4342.5,0.001]
[1760040619463,11.66858392,4342.6,4342.5,0.001]
[1760040619802,11.04809184,4342.6,4342.5,0.001]
[1760040620097,11.6685837,4342.6,4342.5,0.001]
[1760040620964,11.76080473,4342.6,4342.5,0.001]
[1760040621487,5.25480473,4342.6,4342.5,0.001]
[1760040621683,11.76080473,4342.6,4342.5,0.001]
[1760040621918,4.63431287,4342.6,4342.5,0.001]
[1760040622117,10.93369184,4342.6,4342.5,0.001]
[1760040622811,3.79409184,4342.6,4342.5,0.001]
[1760040622965,3.27374837,4342.6,4342.5,0.001]
[1760040623297,2.77736792,4342.6,4342.5,0.001]
[1760040629318,0.002,4342.7,4342.5,0.001]
[1760040629477,2.41913025,4342.7,4342.5,0.001]
[1760040630024,0.1164,4342.7,4342.5,0.001]
[1760040630386,0.002,4342.7,4342.5,0.24290298]
[1760040630802,0.002,4342.7,4342.5,0.35730298]
[1760040631383,0.002,4342.7,4342.6,4.24579559]
[1760040631707,2.41655172,4343.8,4343.0,2.30254546]
[1760040631888,0.1144,4343.8,4343.1,11.45576519]
[1760040632091,0.1144,4343.8,4343.2,2.30244669]
[1760040632290,0.1144,4343.8,4343.3,0.02302396]
[1760040632682,2.303696,4344.7,4343.3,0.02302396]
[1760040632874,2.3021461,4343.8,4343.3,0.93835181]
[1760040633588,2.30223115,4343.7,4343.3,0.91532785]
[1760040633789,2.76523115,4343.7,4343.3,0.91532785]
[1760040634391,2.76524776,4343.6,4343.3,0.91532785]
[1760040634696,2.53563153,4343.9,4343.3,0.91532785]
[1760040634697,2.30219346,4343.7,4343.3,0.91532785]
[1760040634897,2.76519346,4343.7,4343.4,1.00455824]
[1760040637405,0.463,4343.6,4343.4,1.00455824]
[1760040637611,2.30223777,4343.6,4343.5,6.504]
[1760040638126,2.76523777,4343.6,4343.5,6.504]
[1760040640138,2.76523777,4343.6,4343.4,2.394]
[1760040640347,0.463,4343.5,4342.9,6.504]
[1760040640523,2.30255583,4343.0,4342.9,6.504]
[1760040640722,2.76555583,4343.0,4342.9,6.504]
[1760040641744,2.87995583,4343.0,4342.9,6.504]
[1760040649145,2.41695583,4343.0,4342.9,7.5859]
[1760040649442,2.86385583,4343.0,4342.9,6.504]
[1760040653139,0.1144,4343.0,4342.9,6.504]
[1760040653345,2.41695583,4343.0,4342.9,6.504]
[1760040653945,2.86385583,4343.0,4342.9,6.504]
[1760040659088,0.5613,4343.0,4342.9,6.504]
[1760040659289,2.86385583,4343.0,4342.9,6.504]
[1760040664084,0.5613,4343.0,4342.9,6.504]
[1760040664388,0.1144,4343.0,4342.9,6.504]
[1760040664587,2.41695583,4343.0,4342.9,6.504]
[1760040664882,2.89165583,4343.0,4342.9,6.504]
[1760040672005,3.41106654,4343.0,4342.9,6.504]
[1760040673406,2.89165583,4343.0,4342.9,6.504]
[1760040673607,2.89165583,4343.0,4342.8,0.001]
[1760040673608,2.30260885,4342.9,4342.8,0.001]
[1760040674107,2.77730885,4342.9,4342.8,0.001]
[1760040680418,0.1144,4343.0,4342.8,0.001]
[1760040680721,2.77730885,4342.9,4342.8,0.001]
[1760040687117,0.4747,4342.9,4342.8,0.001]
[1760040687303,2.77730885,4342.9,4342.8,0.001]
[1760040692409,3.29673153,4342.9,4342.8,0.001]
[1760040692606,3.79378792,4342.9,4342.8,0.001]
[1760040692811,2.30276792,4342.6,4342.5,0.001]
[1760040693012,2.30287398,4342.4,4342.3,0.001]
[1760040693226,2.79993037,4342.4,4342.3,0.001]
[1760040693411,4.28330049,4342.4,4342.3,0.001]
[1760040693745,4.3755109,4342.4,4342.3,0.001]
[1760040695722,4.2627109,4342.4,4342.3,0.001]
[1760040699352,3.76565451,4342.4,4342.3,0.001]
[1760040706688,4.26125143,4342.4,4342.3,0.001]
[1760040707573,4.89485143,4342.4,4342.3,0.001]
[1760040707765,4.89485143,4342.4,4341.8,0.001]
[1760040707766,2.93663309,4342.1,4341.8,0.001]
[1760040707966,2.93663309,4342.1,4340.4,0.001]
[1760040707967,0.6336,4341.7,4340.4,0.001]
[1760040708179,4.22319222,4341.8,4340.4,0.001]
[1760040708180,2.30361667,4341.0,4340.4,0.001]
[1760040708500,8.80666974,4340.9,4340.4,0.001]
[1760040708685,9.24406974,4340.9,4340.4,0.001]
[1760040708852,9.85573727,4340.9,4340.4,0.001]
[1760040709052,10.35109515,4340.9,4340.4,0.001]
[1760040709282,10.98469515,4340.9,4340.4,0.001]
[1760040710484,10.48933727,4340.9,4340.4,0.001]
[1760040711392,15.03345818,4340.9,4340.4,0.001]
[1760040711605,15.52794622,4340.9,4340.4,0.001]
[1760040712889,2.93753512,4340.4,4340.3,1e-08]
[1760040713090,18.59340954,4340.4,4340.3,1e-08]
[1760040713293,0.6336,4340.3,4338.7,0.001]
[1760040713460,7.48186837,4340.0,4338.7,0.001]
[1760040713658,9.44074746,4340.0,4338.7,0.001]
[1760040713977,9.87814746,4340.0,4338.7,0.001]
[1760040714177,10.60906407,4340.0,4338.7,0.001]
[1760040714376,10.70133616,4340.0,4338.7,0.001]
[1760040715397,10.70133616,4340.0,4339.9,0.001]
[1760040715594,4.19833616,4340.0,4339.9,0.001]
[1760040715789,13.09733616,4340.0,4339.9,0.001]
[1760040716176,4.19833616,4340.0,4339.9,0.001]
[1760040716381,13.09733616,4340.0,4339.9,0.001]
[1760040717877,13.09933616,4340.0,4339.9,0.001]
[1760040719687,10.70333616,4340.0,4339.9,0.001]
[1760040719888,13.09933616,4340.0,4339.9,0.001]
[1760040720296,4.19833616,4340.0,4339.9,0.001]
[1760040720511,13.09933616,4340.0,4339.9,0.001]
[1760040720718,2.30462538,4339.1,4337.8,0.1144195]
[1760040720988,2.30462538,4339.1,4334.9,5.67732584]
[1760040720989,2.93843785,4338.7,4337.0,2.478]
[1760040721186,9.44343785,4338.7,4336.7,0.45885612]
[1760040721415,9.89893785,4338.7,4337.4,0.11622393]
[1760040721808,14.53535747,4338.7,4337.0,2.401]
[1760040722114,16.94854434,4338.7,4337.0,2.401]
[1760040722297,18.3674314,4338.7,4337.0,2.401]
[1760040722498,11.8624314,4338.7,4336.6,9.584]
[1760040722700,2.30563497,4337.2,4336.6,9.584]
[1760040723216,2.76113497,4337.2,4336.6,9.69735535]
[1760040723424,1.14782819,4337.2,4336.6,9.584]
[1760040723601,3.45346316,4337.2,4336.6,9.584]
[1760040723796,3.45346316,4337.2,4336.6,9.70079071]
[1760040726716,1.14782819,4337.2,4336.7,0.023059]
[1760040726920,0.4555,4337.2,4336.7,0.023059]
[1760040727118,2.3051125,4338.2,4337.1,8.908]
[1760040727119,0.69228505,4337.5,4337.1,8.908]
[1760040727318,2.3052692,4337.9,4337.2,0.8908]
[1760040727715,2.30532734,4337.8,4337.2,0.8908]
[1760040728111,0.4555,4338.3,4337.3,0.02305581]
[1760040728314,0.4555,4338.3,4337.2,0.8908]
[1760040728537,2.3053314,4337.8,4337.3,1.22315834]
[1760040728742,0.4555,4337.8,4337.3,1.22315834]
[1760040729055,0.69218123,4338.2,4337.3,1.22315834]
[1760040729056,2.30530715,4337.9,4337.3,1.22315834]
[1760040729347,2.30527145,4337.9,4337.3,1.22315834]
[1760040729547,2.30532567,4337.8,4337.3,1.22315834]
[1760040729739,0.4555,4338.1,4337.4,1.01311583]
[1760040730149,0.4555,4338.0,4337.1,8.908]
[1760040730455,2.30563497,4337.2,4337.1,0.005]
[1760040730822,2.76113497,4337.2,4337.1,0.005]
[1760040731164,0.6336,4337.1,4335.8,2.20462443]
[1760040731457,2.30616668,4336.2,4335.8,2.088]
[1760040731748,2.42136668,4336.2,4335.8,2.088]
[1760040731934,2.87686668,4336.2,4335.8,2.088]
[1760040733252,0.5707,4336.2,4335.8,2.088]
[1760040733451,2.87686668,4336.2,4335.8,2.088]
[1760040733665,0.5707,4336.2,4335.8,2.088]
[1760040734548,2.87686668,4336.2,4335.8,2.088]
[1760040736242,0.1152,4336.2,4335.8,2.088]
[1760040737218,0.5707,4336.2,4335.8,2.088]
[1760040737630,2.76166668,4336.2,4335.8,2.088]
[1760040739145,2.76166668,4336.2,4335.6,0.11294357]
[1760040739748,0.4555,4336.2,4335.6,0.11294357]
[1760040739953,0.4555,4336.2,4335.2,6.509]
[1760040740139,0.4555,4336.2,4335.4,2.30657452]
[1760040740340,2.76166668,4336.2,4335.5,0.11762541]
[1760040740759,0.4555,4336.2,4335.5,0.11762541]
[1760040740960,2.76166668,4336.2,4335.5,0.11762541]
[1760040741266,0.4555,4336.2,4335.5,0.11762541]
[1760040741487,2.76166668,4336.2,4335.5,0.11762541]
[1760040741838,3.25596402,4336.2,4335.2,6.509]
[1760040742169,3.25596402,4336.2,4335.3,1.92]
[1760040742883,3.88141561,4336.2,4335.3,1.92]
[1760040743085,3.88141561,4336.2,4335.3,0.11285697]
[1760040743887,0.94979734,4336.2,4335.3,0.11285697]
[1760040744076,3.25596402,4336.2,4335.3,0.11285697]
[1760040744249,3.25596402,4336.2,4335.3,2.41948565]
[1760040744454,0.94979734,4336.2,4335.4,2.30658945]
[1760040744772,3.25596402,4336.2,4335.3,2.41950184]
[1760040744967,3.25596402,4336.2,4335.3,0.11285697]
[1760040745476,3.25596402,4336.2,4335.3,2.41949945]
[1760040746479,0.94979734,4336.2,4335.4,2.30657995]
[1760040746784,3.25596402,4336.2,4335.3,2.4194848]
[1760040747350,3.25596402,4336.2,4335.3,0.11285697]
[1760040747760,3.25596402,4336.2,4335.3,0.22805697]
[1760040747971,3.94306913,4336.2,4335.3,0.1152]
[1760040748365,4.55957187,4336.2,4335.3,0.1152]
[1760040748566,4.55957187,4336.2,4335.3,0.22853862]
[1760040749263,4.63559869,4336.2,4335.3,0.1152]
[1760040749582,5.25210143,4336.2,4335.3,0.2322074]
[1760040749783,4.56499632,4336.2,4335.3,0.2322074]
[1760040750285,4.56499632,4336.2,4336.1,0.006]
[1760040753187,2.25882964,4336.2,4336.1,0.006]
[1760040753386,0.61119491,4336.2,4336.1,0.006]
[1760040753758,2.91736159,4336.2,4336.1,0.006]
[1760040754159,3.36516159,4336.2,4336.1,0.006]
[1760040755189,0.61119491,4336.2,4336.1,0.006]
[1760040755689,2.91736159,4336.2,4336.1,0.006]
[1760040755863,3.36516159,4336.2,4336.1,0.006]
[1760040758572,3.99428498,4336.2,4336.1,0.006]
[1760040759290,4.61517661,4336.2,4336.1,0.006]
[1760040760314,3.99428498,4336.2,4336.1,0.006]
[1760040761333,10.93308498,4336.2,4336.1,0.006]
[1760040761517,5.25231287,4336.2,4336.1,0.006]
[1760040761704,11.76231287,4336.2,4336.1,0.006]
[1760040762030,5.25231287,4336.2,4336.1,0.006]
[1760040762197,3.16036159,4336.2,4336.1,0.006]
[1760040763410,3.78152775,4336.2,4336.1,0.006]
[1760040763895,3.16036159,4336.2,4336.1,0.006]
[1760040765905,2.71256159,4336.2,4336.1,0.006]
[1760040766514,0.62116616,4336.9,4336.1,0.006]
[1760040766721,2.30770435,4337.1,4336.1,2.68471344]
[1760040766924,2.30578673,4337.0,4336.2,0.02306166]
[1760040767205,2.30587457,4336.8,4336.3,5.758]
[1760040767400,2.30591232,4336.7,4336.3,5.758]
[1760040767639,0.4685,4337.0,4336.4,0.0230606]
[1760040767837,2.77429149,4337.0,4336.5,0.57810606]
[1760040768003,0.002,4337.1,4336.5,0.57810606]
[1760040768425,2.30579923,4336.9,4336.5,0.57810606]
[1760040768623,0.4685,4336.8,4336.3,5.758]
[1760040768936,2.30597228,4336.6,4336.3,5.758]
[1760040769133,2.77452343,4336.5,4336.3,5.758]
[1760040769823,0.002,4337.1,4336.3,5.758]
[1760040769824,0.4705,4337.1,4336.3,5.758]
[1760040770023,0.4705,4337.1,4336.4,0.0230606]
[1760040770024,0.002,4337.1,4336.4,0.0230606]
[1760040770228,2.30587449,4336.8,4336.4,0.83336114]
[1760040770812,0.002,4337.1,4336.4,0.83336114]
[1760040771012,2.30588694,4336.8,4336.4,0.83336114]
[1760040771837,0.1152,4337.0,4336.4,0.83336114]
[1760040772020,2.30600068,4336.6,4336.3,5.758]
[1760040772220,0.1152,4337.0,4336.3,5.758]
[1760040772424,0.4685,4336.9,4336.3,5.758]
[1760040772626,2.30606032,4336.4,4336.3,7.678]
[1760040772926,2.77456032,4336.4,4336.3,5.758]
[1760040773126,2.88976032,4336.4,4336.3,5.758]
[1760040774833,0.5837,4336.4,4336.3,5.758]
[1760040775317,0.1152,4336.4,4336.3,5.758]
[1760040775521,2.88976032,4336.4,4336.3,5.758]
[1760040780417,2.30616668,4336.2,4336.1,0.006]
[1760040780613,2.8257647,4336.2,4336.1,0.006]
[1760040780846,3.2862647,4336.2,4336.1,0.006]
[1760040789774,0.98009802,4336.2,4336.1,0.006]
[1760040789954,0.4605,4336.5,4336.1,0.006]
[1760040790154,0.4605,4336.4,4336.1,0.006]
[1760040790352,2.3059008,4336.7,4336.1,0.006]
[1760040790542,0.4605,4336.3,4336.1,0.006]
[1760040790745,2.30606287,4336.4,4336.1,0.006]
[1760040791064,2.30616668,4336.2,4336.1,0.006]
[1760040791635,0.002,4336.8,4336.1,0.006]
[1760040791831,0.1152,4336.7,4336.1,0.006]
[1760040792035,2.30602542,4336.5,4336.1,0.006]
[1760040792234,2.30606375,4336.4,4336.1,0.006]
[1760040792837,2.30616668,4336.2,4336.1,0.006]
[1760040793691,2.76666668,4336.2,4336.1,0.006]
[1760040797462,2.30615164,4336.3,4336.1,0.006]
[1760040797663,0.1152,4336.4,4336.1,0.006]
[1760040797884,2.30616668,4336.2,4336.1,0.006]
[1760040798087,2.3059008,4336.7,4336.1,0.006]
[1760040798396,2.30610295,4336.4,4336.1,0.006]
[1760040799196,0.1152,4336.7,4336.1,0.006]
[1760040799393,2.30595397,4336.6,4336.1,0.006]
[1760040799594,2.30602324,4336.5,4336.1,0.006]
[1760040799793,0.4605,4336.6,4336.1,0.006]
[1760040799998,2.30607703,4336.4,4336.1,0.006]
[1760040800495,2.30601277,4336.5,4336.1,0.006]
[1760040800715,2.30607446,4336.4,4336.1,0.006]
[1760040800924,2.30612132,4336.3,4336.1,0.006]
[1760040801584,2.30611465,4336.3,4336.1,0.006]
[1760040801912,0.002,4336.4,4336.1,0.006]
[1760040802084,0.002,4336.4,4336.1,0.02906219]
[1760040802406,2.30806746,4336.4,4336.1,0.006]
[1760040802611,2.30806179,4336.4,4336.1,0.006]
[1760040802916,2.3061135,4336.3,4336.1,0.006]
[1760040803075,2.30806179,4336.4,4336.1,0.006]
[1760040803482,2.30616668,4336.2,4336.1,0.006]
[1760040804582,2.76666668,4336.2,4336.1,0.006]
[1760040805009,0.4605,4336.2,4336.1,0.006]
[1760040805208,2.76666668,4336.2,4336.1,0.006]
[1760040806215,2.42326268,4336.4,4336.1,0.006]
[1760040806216,2.30612534,4336.3,4336.1,0.006]
[1760040806404,0.1172,4336.4,4336.1,0.006]
[1760040806604,2.30616668,4336.2,4336.1,0.006]
[1760040809104,2.78066668,4336.2,4336.1,0.006]
[1760040810315,0.4745,4336.2,4336.1,0.006]
[1760040810516,0.1172,4336.4,4336.1,0.006]
[1760040810721,2.3061135,4336.3,4336.1,0.006]
[1760040811023,2.89776952,4336.4,4336.1,0.006]
[1760040811223,2.30613484,4336.3,4336.1,0.006]
[1760040811410,0.5917,4336.4,4336.1,0.006]
[1760040811604,2.89777164,4336.4,4336.1,0.006]
[1760040811922,2.3061135,4336.3,4336.1,0.006]
[1760040812221,2.30616668,4336.2,4336.1,0.006]
[1760040812713,2.78066668,4336.2,4336.1,0.006]
[1760040813297,3.3010647,4336.2,4336.1,0.006]
[1760040813696,2.78066668,4336.2,4336.1,0.006]
[1760040818945,0.1152,4336.2,4336.1,0.006]
[1760040819433,2.89586668,4336.2,4336.1,0.006]
[1760040819633,0.1152,4336.2,4336.1,0.006]
[1760040820442,2.42136668,4336.2,4336.1,0.006]
[1760040821303,2.89586668,4336.2,4336.1,0.006]
[1760040827512,2.82386668,4336.2,4336.1,0.006]
[1760040827716,3.33706209,4336.2,4336.1,0.006]
[1760040831359,3.83430046,4336.2,4336.1,0.006]
[1760040831531,3.33706209,4336.2,4336.1,0.006]
[1760040834660,3.33906209,4336.2,4336.1,0.006]
[1760040839901,3.97266209,4336.2,4336.1,0.006]
[1760040840189,2.30643264,4335.7,4335.6,0.001]
[1760040840680,2.73803264,4335.7,4335.6,0.001]
[1760040842789,3.37163264,4335.7,4335.6,0.001]
[1760040842990,3.96066262,4335.7,4335.6,0.001]
[1760040843494,3.4639923,4335.7,4335.6,0.001]
[1760040843655,4.84235156,4335.7,4335.6,0.001]
[1760040844370,9.39933862,4335.7,4335.6,0.001]
[1760040846681,15.90733862,4335.7,4335.6,0.001]
[1760040846859,18.30533862,4335.7,4335.6,0.001]
[1760040848364,2.30723086,4334.2,4334.1,0.005]
[1760040848565,9.27666986,4334.2,4334.1,0.005]
[1760040848759,9.70826986,4334.2,4334.1,0.005]
[1760040849072,9.82346986,4334.2,4334.1,0.005]
[1760040849794,10.45706986,4334.2,4334.1,0.005]
[1760040851298,10.45706986,4334.2,4334.1,0.006]
[1760040851477,3.94906986,4334.2,4334.1,0.006]
[1760040851894,10.45806986,4334.2,4334.1,0.006]
[1760040852087,3.94906986,4334.2,4334.1,0.006]
[1760040852365,10.45806986,4334.2,4334.1,0.006]
[1760040853176,3.94906986,4334.2,4334.1,0.006]
[1760040853383,10.45806986,4334.2,4334.1,0.006]
[1760040853802,3.94906986,4334.2,4334.1,0.006]
[1760040854019,10.45906986,4334.2,4334.1,0.006]
[1760040854379,3.94906986,4334.2,4334.1,0.006]
[1760040854712,10.45906986,4334.2,4334.1,0.006]
[1760040857437,2.94088409,4334.1,4333.6,0.001]
[1760040857590,2.53419705,4333.7,4333.6,0.001]
[1760040857784,9.04419705,4333.7,4333.6,0.001]
[1760040858022,9.47579705,4333.7,4333.6,0.001]
[1760040858922,2.96579705,4333.7,4333.6,0.001]
[1760040860425,2.73909705,4333.7,4333.6,0.001]
[1760040860794,2.85429705,4333.7,4333.6,0.001]
[1760040861396,0.1152,4333.7,4333.6,0.001]
[1760040862133,2.42269705,4333.7,4333.6,0.001]
[1760040863050,0.1152,4333.7,4333.6,0.001]
[1760040863527,0.69281744,4334.9,4333.6,2.3085088]
[1760040863831,0.1152,4334.4,4333.8,2.30743841]
[1760040864031,0.1152,4334.4,4333.9,0.0230739]
[1760040864630,2.42233658,4334.4,4333.7,2.90350347]
[1760040865106,0.1152,4334.4,4333.7,0.59602346]
[1760040866007,2.30718044,4334.3,4333.7,0.59602346]
[1760040866399,2.42234965,4334.4,4333.7,0.59602346]
[1760040866730,0.1152,4334.4,4333.7,0.59602346]
[1760040866902,0.1152,4334.4,4333.8,0.30197694]
[1760040867102,0.1152,4334.4,4333.7,0.59602346]
[1760040867311,2.30719059,4334.3,4333.7,0.46392346]
[1760040867534,2.30718605,4334.3,4333.7,0.46392346]
[1760040867936,0.1152,4334.4,4333.7,0.46392346]
[1760040867937,2.30724024,4334.2,4333.7,0.46392346]
[1760040868105,2.30724024,4334.2,4333.6,0.1162]
[1760040868719,2.88083635,4334.4,4333.6,0.1162]
[1760040869036,2.30719443,4334.3,4333.6,2.42374938]
[1760040870132,2.3072382,4334.2,4333.6,0.1162]
[1760040870938,2.30729375,4334.1,4333.6,0.1162]
[1760040871102,2.30729375,4334.1,4333.7,0.44759472]
[1760040871301,2.30724782,4334.2,4333.7,0.44759472]
[1760040875954,2.30728531,4334.1,4333.7,0.44759472]
[1760040876453,2.30724307,4334.2,4333.7,0.44759472]
[1760040876954,2.3072891,4334.1,4333.7,0.44759472]
[1760040877151,0.5757,4334.4,4333.7,0.44759472]
[1760040877356,0.5757,4334.4,4333.7,2.75508561]
[1760040877541,2.30718081,4334.3,4333.8,0.30034896]
[1760040877853,2.30728409,4334.1,4333.8,0.30034896]
[1760040878043,2.30728409,4334.1,4333.7,0.44759472]
[1760040882258,2.30724256,4334.2,4333.7,0.44759472]
[1760040882933,2.30728812,4334.1,4333.7,0.44759472]
[1760040883370,2.30734503,4334.0,4333.7,0.44759472]
[1760040884242,2.30734503,4334.0,4333.6,0.1162]
[1760040884876,0.1172,4334.4,4333.6,0.1162]
[1760040885167,2.30749705,4333.7,4333.6,0.001]
[1760040886035,2.75679705,4333.7,4333.6,0.001]
[1760040888382,2.87199705,4333.7,4333.6,0.001]
[1760040888681,3.41339952,4333.7,4333.6,0.001]
[1760040891399,3.35579952,4333.7,4333.6,0.001]
[1760040891578,2.81439705,4333.7,4333.6,0.001]
[1760040895987,2.36509705,4333.7,4333.6,0.001]
[1760040896982,2.80529705,4333.7,4333.6,0.001]
[1760040898806,3.43889705,4333.7,4333.6,0.001]
[1760040899117,3.32369705,4333.7,4333.6,0.001]
[1760040899301,3.28400606,4333.7,4333.6,0.001]
[1760040900331,3.91760606,4333.7,4333.6,0.001]
[1760040900521,4.41380022,4333.7,4333.6,0.001]
[1760040901021,10.42760606,4333.7,4333.6,0.001]
[1760040901230,3.91760606,4333.7,4333.6,0.001]
[1760040901556,2.69009705,4333.7,4333.6,0.001]
[1760040905236,2.69209705,4333.7,4333.6,0.001]
[1760040925115,9.20109705,4333.7,4333.6,0.001]
[1760040926192,2.25189705,4333.7,4333.6,0.001]
[1760040926397,2.69209705,4333.7,4333.6,0.001]
[1760040932642,2.25189705,4333.7,4333.6,0.001]
[1760040932846,0.1172,4333.7,4333.6,0.001]
[1760040933008,0.002,4333.7,4333.6,0.1561755]
[1760040933440,0.002,4333.7,4333.6,14.6056341]
[1760040933637,0.002,4333.7,4333.6,14.3102083]
[1760040933811,0.002,4333.7,4333.6,16.6177586]
[1760040934143,0.002,4333.7,4333.6,16.71011058]
[1760040935131,0.002,4333.7,4333.6,14.40256028]
[1760040935341,0.002,4333.7,4333.6,12.2581083]
[1760040935542,2.30949705,4333.7,4333.6,12.0002]
[1760040936627,0.002,4333.7,4333.6,12.0002]
[1760040936825,0.002,4333.7,4333.6,12.1323]
[1760040941060,2.30949705,4333.7,4333.6,12.0002]
[1760040941269,2.76979705,4333.7,4333.6,0.001]
[1760040942651,3.93256616,4333.7,4333.6,0.001]
[1760040943029,4.42883806,4333.7,4333.6,0.001]
[1760040945253,3.93256616,4333.7,4333.6,0.001]
[1760040946568,10.44056616,4333.7,4333.6,0.001]
[1760040948067,3.93256616,4333.7,4333.6,0.001]
[1760040948235,10.44056616,4333.7,4333.6,0.001]
[1760040948436,3.93256616,4333.7,4333.6,0.001]
[1760040948960,10.44056616,4333.7,4333.6,0.001]
[1760040951272,10.44156616,4333.7,4333.6,0.001]
[1760040951898,3.93256616,4333.7,4333.6,0.001]
[1760040952155,10.44156616,4333.7,4333.6,0.001]
[1760040954188,2.76979705,4333.7,4333.6,0.001]
[1760040954390,2.74119705,4333.7,4333.6,0.001]
[1760040955156,2.30949705,4333.7,4333.6,0.001]
[1760040955381,2.42469705,4333.7,4333.6,0.001]
[1760040955775,2.37909705,4333.7,4333.6,0.001]
[1760040956889,0.1152,4334.1,4333.6,0.001]
[1760040957262,2.30733733,4334.0,4333.6,0.001]
[1760040957463,2.30749705,4333.7,4333.6,0.001]
[1760040959493,2.30949705,4333.7,4333.6,0.001]
[1760040960405,2.75729705,4333.7,4333.6,0.001]
[1760040966641,14.98984928,4333.7,4333.6,0.001]
[1760040966846,15.4857152,4333.7,4333.6,0.001]
[1760040967048,14.98984928,4333.7,4333.6,0.001]
[1760040967222,15.48579838,4333.7,4333.6,0.001]
[1760040969139,15.48579838,4333.7,4331.5,0.09239849]
[1760040969140,0.6336,4332.8,4331.5,0.09239849]
[1760040969351,0.6336,4332.8,4331.1,0.005]
[1760040969352,2.30829601,4332.2,4331.2,0.1321]
[1760040969504,2.95529601,4332.2,4331.3,0.02308775]
[1760040969697,2.95529601,4332.2,4331.1,0.005]
[1760040969698,3.40309601,4332.2,4331.1,0.005]
[1760040970422,3.40309601,4332.2,4332.1,1e-08]
[1760040970612,3.97794611,4332.2,4332.1,1e-08]
[1760040971400,9.83894611,4332.2,4332.1,1e-08]
[1760040976216,9.83894611,4332.2,4332.1,0.00100001]
[1760040977718,2.30829601,4332.2,4332.1,0.00100001]
[1760040977918,9.26509601,4332.2,4332.1,0.00100001]
[1760040978440,2.30829601,4332.2,4332.1,0.00100001]
[1760040981930,0.1152,4332.4,4332.1,0.00100001]
[1760040982164,2.30806485,4332.7,4332.1,0.13310001]
[1760040982337,2.30812131,4332.6,4332.1,0.24830001]
[1760040982532,2.30812131,4332.6,4332.2,0.15518296]
[1760040982763,2.3080793,4332.7,4332.3,0.1321]
[1760040982966,2.30810893,4332.6,4332.3,0.2473]
[1760040984043,2.30801777,4332.8,4332.3,0.2473]
[1760040984248,2.42307673,4333.0,4332.3,0.2473]
[1760040984446,0.1152,4333.0,4332.3,0.2473]
[1760040984654,2.30788248,4333.0,4332.8,0.1152]
[1760040985966,2.30781657,4333.1,4332.8,0.1152]
[1760040986370,2.30808363,4332.6,4332.4,0.29333]
[1760040986570,2.30808363,4332.6,4332.5,0.1152]
[1760040986962,2.30793997,4332.9,4332.5,0.1152]
[1760040987159,0.5777,4333.3,4332.5,0.1152]
[1760040987565,2.30797736,4332.8,4332.5,0.1152]
[1760040987766,2.30803004,4332.7,4332.5,0.1152]
[1760040988070,2.30803004,4332.7,4332.5,0.64843]
[1760040988942,0.5777,4333.3,4332.5,0.64843]
[1760040989143,0.1152,4333.3,4332.6,0.15518082]
[1760040989550,2.30777806,4333.2,4332.6,0.15518082]
[1760040989754,2.30784343,4333.1,4332.6,0.15518082]
[1760040989956,2.30784343,4333.1,4332.7,0.44327635]
[1760040990156,2.30784343,4333.1,4332.8,0.02307976]
[1760040990781,2.30779014,4333.2,4332.8,0.02307976]
[1760040990981,2.30797636,4332.8,4332.5,0.64843]
[1760040991285,2.30797636,4332.8,4332.5,0.78053]
[1760040992654,2.30794024,4332.9,4332.5,0.78053]
[1760040992851,2.3079843,4332.8,4332.5,0.64843]
[1760040993091,2.30806121,4332.7,4332.5,0.64843]
[1760040993295,2.30998931,4332.8,4332.5,0.64843]
[1760040993781,2.30803097,4332.7,4332.5,0.64843]
[1760040993995,2.30824273,4332.3,4332.2,7.005]
[1760040994155,2.30824273,4332.3,4332.2,7.1202]
[1760040994764,0.4625,4332.7,4332.2,7.1202]
[1760040994975,2.3080874,4332.6,4332.2,7.1202]
[1760040995182,2.30814657,4332.5,4332.2,7.1202]
[1760040995352,2.30814657,4332.5,4332.2,7.83232]
[1760040995862,2.30819507,4332.4,4332.2,7.83232]
[1760040996551,2.30803901,4332.7,4332.2,7.83232]
[1760040996756,2.30803901,4332.7,4332.3,0.02308242]
[1760040997085,0.002,4332.8,4332.2,7.83232]
[1760040997285,2.3081448,4332.5,4332.2,7.83232]
[1760040997687,2.30807355,4332.7,4332.3,0.796542]
[1760040997983,2.30808617,4332.6,4332.3,0.796542]
[1760040998766,2.30814354,4332.5,4332.3,0.796542]
[1760040999766,0.002,4332.8,4332.3,0.796542]
[1760040999962,0.002,4332.8,4332.4,0.02308189]
[1760041000188,2.30808861,4332.6,4332.4,0.02308189]
[1760041000395,2.3080425,4332.7,4332.3,0.796542]
[1760041000887,0.002,4332.8,4332.3,0.796542]
[1760041001189,2.30806737,4332.7,4332.4,0.45117042]
[1760041001694,2.30806737,4332.7,4332.3,0.796542]
[1760041001695,2.30809216,4332.6,4332.3,0.796542]